Workbook

Sheet Summary
L1: Annual Allowance Calculator built by M&G | O1: Tax Year 2023/24
A2: No
H3: For conditional for year joined scheme | I3: Conditional for warnings | L3: What tax year did individual first join a pension? | O3: Instructions for use
A4: 2008/09 | B4: 1 | H4: =IF($C$7>B4,1,0) -> 0 | L4: (If a member prior to 2008/09 tax year select 2008/09). | M4: 2008/09 | O4: Step1: Input tax year first joined a pension scheme.
A5: 2009/10 | B5: 2 | H5: 0 | M5: =IF('Carry Forward Workings'!V20>0,"Pension Inputs have been entered for a year prior to scheme membership - please amend.","") ->  | O5: Step2: Calculate tapered AA if applicable using grey button on right hand side.
A6: 2010/11 | B6: 3 | H6: 0 | O6: Step3: Input existing pension input amounts in white boxes. Inputs are required until there is 3 clear years with no AA excess
A7: 2011/12 | B7: 4 | C7: =VLOOKUP(M4,A4:B23,2,FALSE) -> 1 | D7: Added to lookup to capture 2020/23 | H7: 0 | L7: Total inputs for PIPs ending in Tax Year: | M7: Existing Inputs
A8: 2012/13 | B8: 5 | H8: 0 | L8: =A4 -> 2008/09 | M8: 0 | O8: 2008/09 to 2010/11 - Inputs are capped at £50,000 for Carry Forward calculations
A9: 2013/14 | B9: 6 | H9: 0 | L9: =A5 -> 2009/10 | M9: 0
A10: 2014/15 | B10: 7 | H10: 0 | L10: =A6 -> 2010/11 | M10: 0
A11: 2015/16 (pre alignment) | B11: 8 | H11: 0 | L11: =A7 -> 2011/12 | AB11: Suicide Code
A12: 2015/16 (post alignment) | B12: 8.5 | H12: 0 | L12: Inputs prior to 14/10/2010 | M12: 0 | O12: Straddling PIPs - if total inputs are less than or equal to £50,000 then put all in as post 14/10/2010. If total inputs are over £50,000 then you need to enter the pre and post 14/10/10 split of inputs. | AB12: =TODAY() -> 2023-10-11
A13: 2016/17 | B13: 9 | H13: 0 | I13: =IF('Taper 16-17'!T10>0,IF(M20<>'Taper 16-17'!T10,1,0),0) -> 0 | L13: Inputs on or after 14/10/2010 | M13: 0 | AB13: 2024-04-05
A14: 2017/18 | B14: 10 | H14: 0 | I14: =IF('Taper 17-18'!T10>0,IF(M21<>'Taper 17-18'!T10,1,0),0) -> 0 | L14: =A8 -> 2012/13 | M14: 0
A15: 2018/19 | B15: 11 | F15: 0 | H15: 0 | I15: =IF('Taper 18-19'!T10>0,IF(M22<>'Taper 18-19'!T10,1,0),0) -> 0 | L15: =A9 -> 2013/14 | M15: 0 | U15: =IF(AND(O20>0,O20<10000),"WARNING - This is less than the minimum taper","") -> 
A16: 2019/20 | B16: 12 | F16: 0 | H16: 0 | I16: =IF('Taper 19-20'!T10>0,IF(M23<>'Taper 19-20'!T10,1,0),0) -> 0 | L16: =A10 -> 2014/15 | M16: 0
A17: 2020/21 | B17: 13 | F17: 0 | H17: 0 | I17: =IF('Taper 20-21'!T10>0,IF(M24<>'Taper 20-21'!T10,1,0),0) -> 0 | L17: 2015/16
A18: 2021/22 | B18: 14 | H18: 0 | I18: =IF('Taper 21-22'!T10>0,IF(M25<>'Taper 21-22'!T10,1,0),0) -> 0 | L18: Inputs prior to 09/07/15 | M18: 0 | O18: Tapered Annual Allowance Details | U18: =IF(AND(O21>0,O21<10000),"WARNING - This is less than the minimum taper","") -> 
A19: 2022/23 | B19: 15 | C19: Added for 2022/23 | F19: 0 | H19: =IF($C$7>B19,1,0) -> 0 | I19: =IF('Taper 22-23'!T10>0,IF(M26<>'Taper 22-23'!T10,1,0),0) -> 0 | L19: Inputs on or after 09/07/15 | M19: 0
A20: 2023/24 | B20: 16 | F20: 0 | H20: =IF($C$7>B20,1,0) -> 0 | I20: =IF('Taper 23-24'!T10>0,IF(M27<>'Taper 23-24'!T10,1,0),0) -> 0 | L20: =A13 -> 2016/17 | M20: 0 | O20: 0
F21: 0 | L21: =A14 -> 2017/18 | M21: 0 | O21: 0 | U21: =IF(AND(O22>0,O22<10000),"WARNING - This is less than the minimum taper","") -> 
F22: 0 | L22: 2018/19 | M22: 0 | O22: 0 | Q22: Input the taper figures here if known - or select relevant tab(s) to calculate.
F23: 0 | L23: 2019/20 | M23: 0 | O23: 0
L24: 2020/21 | M24: 0 | O24: 0 | U24: =IF(AND(O23>0,O23<10000),"WARNING - This is less than the minimum taper","") -> 
F25: 0 | L25: 2021/22 | M25: 0 | O25: 0
F26: 0 | L26: 2022/23 | M26: 0 | O26: 0
L27: 2023/24 | M27: 0 | O27: 0
F28: 0 | U28: =IF(AND(O24>0,O24<4000),"WARNING - This is less than the minimum taper","") -> 
F29: 0 | M29: Summary Information for 2023/24
F30: 0
F31: 0 | O31: Existing Inputs | U31: =IF(AND(O25>0,O25<4000),"WARNING - This is less than the minimum taper","") -> 
F32: 0 | M32: Annual Allowance | P32: ='Carry Forward Workings'!T5 -> 60000
F33: 0 | M33: Total Inputs | P33: ='Carry Forward Workings'!T13 -> 0 | Q33: =IF('Taper 23-24'!T9>0,IF('Taper 23-24'!T10>=0,IF(M27='Taper 23-24'!T10,"","Pension inputs above do not equal pension inputs in the 2023/24 taper calculator"),""),"") -> 
F34: 0 | M34: Unused allowance from this year | P34: ='Carry Forward Workings'!T110 -> 60000 | U34: =IF(AND(O26>0,O26<4000),"WARNING - This is less than the minimum taper","") ->  | AB34: This is new for 2022/23
Q35: =IF('Taper 16-17'!T10>0,IF('Taper 16-17'!T11>=0,IF(M20='Taper 16-17'!T11,"","Pension inputs above do not equal pension inputs in the 2016/17 taper calculator"),""),"") -> 
M36: Carry Forward available from: | Q36: =IF('Taper 17-18'!T9>0,IF('Taper 17-18'!T9>=0,IF(M21='Taper 17-18'!T10,"","Pension inputs above do not equal pension inputs in the 2017/18 taper calculator"),""),"") -> 
Q37: =IF('Taper 18-19'!T9>0,IF('Taper 18-19'!T10>=0,IF(M22='Taper 18-19'!T10,"","Pension inputs above do not equal pension inputs in the 2018/19 taper calculator"),""),"") ->  | AB37: Testing comments
M38: =L24 -> 2020/21 | O38: ='Carry Forward Workings'!T95 -> 40000 | Q38: =IF('Taper 19-20'!T9>0,IF('Taper 19-20'!T10>=0,IF(M23='Taper 19-20'!T10,"","Pension inputs above do not equal pension inputs in the 2019/20 taper calculator"),""),"") ->  | AB38: These warnngs are not present in most of the taper tabs, and need to be added
M39: =L25 -> 2021/22 | O39: ='Carry Forward Workings'!T100 -> 40000 | Q39: =IF('Taper 20-21'!T9>0,IF('Taper 20-21'!T10>=0,IF(M24='Taper 20-21'!T10,"","Pension inputs above do not equal pension inputs in the 2020/21 taper calculator"),""),"") -> 
M40: 2022/23 | O40: ='Carry Forward Workings'!T105 -> 40000 | P40: =SUM(O38:O40) -> 120000 | Q40: =IF('Taper 21-22'!T9>0,IF('Taper 21-22'!T10>=0,IF(M25='Taper 21-22'!T10,"","Pension inputs above do not equal pension inputs in the 2021/22 taper calculator"),""),"") -> 
Q41: =IF('Taper 22-23'!T9>0,IF('Taper 22-23'!T10>=0,IF(M26='Taper 22-23'!T10,"","Pension inputs above do not equal pension inputs in the 2022/23 taper calculator"),""),"") -> 
M42: Chargeable Amount | P42: ='Carry Forward Workings'!T21 -> 0 | Q42: =IF(SUM('Carry Forward Workings'!G21:S21)>0,"Please note there have been chargeable amounts in previous tax years","") -> 
M43: See Carry Forward Workings for full calculations
L46: This calculator is designed to give a general demonstration of how a client's pension contributions can determine any unused Annual Allowance; the client may be able to 'carry forward' unused allowance from the last three years to increase their limit for the current tax year. The Annual Allowance calculator takes in the details of the client's previous and expected contributions to their pension arrangements. It then works out if the client could be subject to an Annual Allowance charge; the amount of unused Annual Allowance including any carry forward opportunities. It does not take into account all the possible individual circumstances that may impact on the tax position of the investment. It should not be taken as offering advice or any recommendation. The default values presented on the tool, do not suggest any recommendation from M&G. The information in this modeller is based on our understanding as at March 2023 of current taxation, legislation and HM Revenue & Customs practice all of which is subject to change without notice.

Sheet Carry Forward Workings
C1: Annual Allowance Calculator - Workings built by M&G | F1: =Summary!O1 -> Tax Year 2023/24
K2: 2015/16
D3: 1 | E3: 2 | F3: 3 | G3: 4 | H3: 5 | I3: 6 | J3: 7 | K3: 8 | L3: 8.5 | M3: 9 | N3: 10 | O3: 11 | P3: 12 | Q3: 13 | R3: 14 | S3: 15 | T3: 16 | V3: =Summary!C7 -> 1 | W3: Inputted tax year joined scheme
D4: =Summary!$A4 -> 2008/09 | E4: =Summary!$A5 -> 2009/10 | F4: =Summary!$A6 -> 2010/11 | G4: =Summary!$A7 -> 2011/12 | H4: =Summary!$A8 -> 2012/13 | I4: =Summary!$A9 -> 2013/14 | J4: =Summary!$A10 -> 2014/15 | K4: Pre Alignment | L4: Post Alignment | M4: =Summary!$A13 -> 2016/17 | N4: =Summary!$A14 -> 2017/18 | O4: 2018/19 | P4: 2019/20 | Q4: 2020/21 | R4: 2021/22 | S4: 2022/23 | T4: 2023/24
C5: Annual Allowance Limit | D5: 50000 | E5: 50000 | F5: 50000 | G5: 50000 | H5: 50000 | I5: 50000 | J5: 40000 | K5: 80000 | L5: 40000 | M5: =IF(Summary!O20>0,Summary!O20,'Taper 16-17'!E33) -> 40000 | N5: =IF(Summary!O21>0,Summary!O21,'Taper 17-18'!E33) -> 40000 | O5: =IF(Summary!O22>0,Summary!O22,'Taper 18-19'!E33) -> 40000 | P5: =IF(Summary!O23>0,Summary!O23,'Taper 19-20'!E33) -> 40000 | Q5: =IF(Summary!O24>0,Summary!O24,'Taper 20-21'!E33) -> 40000 | R5: =IF(Summary!O25>0,Summary!O25,'Taper 21-22'!E33) -> 40000 | S5: =IF(Summary!O26>0,Summary!O26,'Taper 22-23'!E33) -> 40000 | T5: =IF(Summary!O27>0,Summary!O27,'Taper 23-24'!E33) -> 60000
C7: Annual Allowance | D7: =IF(D3<Summary!$C$7,0,D5) -> 50000 | E7: =IF(E3<Summary!$C$7,0,E5) -> 50000 | F7: =IF(F3<Summary!$C$7,0,F5) -> 50000 | G7: =IF(G3<Summary!$C$7,0,G5) -> 50000 | H7: =IF(H3<Summary!$C$7,0,H5) -> 50000 | I7: =IF(I3<Summary!$C$7,0,I5) -> 50000 | J7: =IF(J3<Summary!$C$7,0,J5) -> 40000 | K7: =IF(K3<Summary!$C$7,0,K5) -> 80000 | L7: =IF(V3=L3,L5,0) -> 0 | M7: =IF(M3<Summary!$C$7,0,M5) -> 40000 | N7: =IF(N3<Summary!$C$7,0,N5) -> 40000 | O7: =IF(O3<Summary!$C$7,0,O5) -> 40000 | P7: =IF(P3<Summary!$C$7,0,P5) -> 40000 | Q7: =IF(Q3<Summary!$C$7,0,Q5) -> 40000 | R7: =IF(R3<Summary!$C$7,0,R5) -> 40000 | S7: =IF(S3<Summary!$C$7,0,S5) -> 40000 | T7: =IF(T3<Summary!$C$7,0,T5) -> 60000
C9: Carry Forward | D9: 0 | E9: =E28 -> 50000 | F9: =F28+F33 -> 100000 | G9: =G28+G33+G38 -> 150000 | H9: =H33+H38+H43 -> 150000 | I9: =I38+I43+I48 -> 150000 | J9: =J43+J48+J53 -> 150000 | K9: =K48+K53+K58 -> 140000 | L9: =L48+L53+L58+L63 -> 180000 | M9: =M53+M58+M63+M70 -> 130000 | N9: =N58+N63+N68+N73 -> 120000 | O9: =O78+O73+O68+O63 -> 120000 | P9: =P83+P78+P73 -> 120000 | Q9: =Q88+Q83+Q78 -> 120000 | R9: =R93+R88+R83 -> 120000 | S9: =S98+S93+S88 -> 120000 | T9: =T103+T98+T93 -> 120000
C11: Maximum Allowance | D11: N/A | E11: N/A | F11: N/A | G11: =SUM(G7:G9) -> 200000 | H11: 200000 | I11: 200000 | J11: 190000 | K11: 220000 | L11: =SUM(L7:L9) -> 180000 | M11: 170000 | N11: 160000 | O11: 160000 | P11: 160000 | Q11: =SUM(Q7:Q9) -> 160000 | R11: =SUM(R7:R9) -> 160000 | S11: =SUM(S7:S9) -> 160000 | T11: =SUM(T7:T9) -> 180000
C13: Total Inputs (08/09, 09/10 & 10/11 inputs capped at £50,000) | D13: =IF(D3<V3,0,MIN(50000,Summary!M8)) -> 0 | E13: =IF(E3<V3,0,MIN(50000,Summary!M9)) -> 0 | F13: =IF(F3<V3,0,MIN(50000,Summary!M10)) -> 0 | G13: =IF(G3<V3,0,(Summary!M12+Summary!M13)) -> 0 | H13: =IF(H3<V3,0,Summary!$M14) -> 0 | I13: =IF(I3<V3,0,Summary!$M15) -> 0 | J13: =IF(J3<V3,0,Summary!$M16) -> 0 | K13: =IF(K3<V3,0,Summary!M18) -> 0 | L13: =IF(L3<V3,0,Summary!M19) -> 0 | M13: =IF(M3<V3,0,Summary!$M20) -> 0 | N13: =IF(N3<V3,0,Summary!$M21) -> 0 | O13: =IF(O3<V3,0,Summary!$M22) -> 0 | P13: =IF(P3<V3,0,Summary!$M23) -> 0 | Q13: =IF(Q3<$V$3,0,Summary!$M24) -> 0 | R13: =IF(R3<$V$3,0,Summary!$M25) -> 0 | S13: =IF(S3<$V$3,0,Summary!$M26) -> 0 | T13: =IF(T3<$V$3,0,Summary!$M27) -> 0
D15: =MIN(0,D7-D13) -> 0 | E15: =MIN(0,E7-E13) -> 0 | F15: =MIN(0,F7-F13) -> 0 | G15: =H132*-1 -> 0 | H15: =MIN(0,H7-H13) -> 0 | I15: 0 | J15: 0 | K15: 0 | L15: 0 | M15: 0 | N15: 0 | O15: 0 | P15: =MIN(0,P7-P13) -> 0 | Q15: =MIN(0,Q7-Q13) -> 0 | R15: =MIN(0,R7-R13) -> 0 | S15: =MIN(0,S7-S13) -> 0 | T15: =MIN(0,T7-T13) -> 0
C16: Excess over standard Annual Allowance | D16: =D15*-1 -> 0 | E16: 0 | F16: 0 | G16: =G15*-1 -> 0 | H16: 0 | I16: 0 | J16: 0 | K16: 0 | L16: =L15*-1 -> 0 | M16: 0 | N16: 0 | O16: 0 | P16: 0 | Q16: =Q15*-1 -> 0 | R16: =R15*-1 -> 0 | S16: =S15*-1 -> 0 | T16: =T15*-1 -> 0
C18: Chargeable Amount logic | G18: =IF(G21>0,1,0) -> 0 | H18: =IF(H21>0,1,0) -> 0 | I18: 0 | J18: 0 | K18: 0 | L18: 0 | M18: 0 | N18: 0 | O18: 0 | P18: 0 | Q18: 0 | R18: 0 | S18: 0 | T18: 0
C19: In scheme (based on inputs) | D19: =IF(D3>=$V$3,"YES",IF(SUM($D$13:D13)>0,"YES","NO")) -> YES | E19: =IF(E3>=$V$3,"YES",IF(SUM($D$13:E13)>0,"YES","NO")) -> YES | F19: =IF(F3>=$V$3,"YES",IF(SUM($D$13:F13)>0,"YES","NO")) -> YES | G19: =IF(G3>=$V$3,"YES",IF(SUM($D$13:G13)>0,"YES","NO")) -> YES | H19: =IF(H3>=$V$3,"YES",IF(SUM($D$13:H13)>0,"YES","NO")) -> YES | I19: =IF(I3>=$V$3,"YES",IF(SUM($D$13:I13)>0,"YES","NO")) -> YES | J19: =IF(J3>=$V$3,"YES",IF(SUM($D$13:J13)>0,"YES","NO")) -> YES | K19: =IF(K3>=$V$3,"YES",IF(SUM($D$13:K13)>0,"YES","NO")) -> YES | L19: =IF(L3>=$V$3,"YES",IF(SUM($D$13:L13)>0,"YES","NO")) -> YES | M19: =IF(M3>=$V$3,"YES",IF(SUM($D$13:M13)>0,"YES","NO")) -> YES | N19: =IF(N3>=$V$3,"YES",IF(SUM($D$13:N13)>0,"YES","NO")) -> YES | O19: =IF(O3>=$V$3,"YES",IF(SUM($D$13:O13)>0,"YES","NO")) -> YES | P19: =IF(P3>=$V$3,"YES",IF(SUM($D$13:P13)>0,"YES","NO")) -> YES | Q19: =IF(Q3>=$V$3,"YES",IF(SUM($D$13:Q13)>0,"YES","NO")) -> YES | R19: =IF(R3>=$V$3,"YES",IF(SUM($D$13:R13)>0,"YES","NO")) -> YES | S19: =IF(S3>=$V$3,"YES",IF(SUM($D$13:S13)>0,"YES","NO")) -> YES | T19: =IF(T3>=$V$3,"YES",IF(SUM($D$13:T13)>0,"YES","NO")) -> YES | V19: =COUNTIF(D19:K19,"YES") -> 8 | W19: >0 means they had nil allowance post, 0 means they joined after budget (assuming inputs OK)
C20: Date joined scheme wrong (inputs before date selected) | D20: =AND(D3<$V$3,D13>0) -> FALSE | E20: =AND(E3<$V$3,SUM($D$13:E13)>0) -> FALSE | F20: =AND(F3<$V$3,SUM($D$13:F13)>0) -> FALSE | G20: =AND(G3<$V$3,SUM($D$13:G13)>0) -> FALSE | H20: =AND(H3<$V$3,SUM($D$13:H13)>0) -> FALSE | I20: =AND(I3<$V$3,SUM($D$13:I13)>0) -> FALSE | J20: =AND(J3<$V$3,SUM($D$13:J13)>0) -> FALSE | K20: =AND(K3<$V$3,SUM($D$13:K13)>0) -> FALSE | L20: =AND(L3<$V$3,SUM($D$13:L13)>0) -> FALSE | M20: =AND(M3<$V$3,SUM($D$13:M13)>0) -> FALSE | N20: =AND(N3<$V$3,SUM($D$13:N13)>0) -> FALSE | O20: =AND(O3<$V$3,SUM($D$13:O13)>0) -> FALSE | P20: =AND(P3<$V$3,SUM($D$13:P13)>0) -> FALSE | Q20: =AND(Q3<$V$3,SUM($D$13:Q13)>0) -> FALSE | R20: =AND(R3<$V$3,SUM($D$13:R13)>0) -> FALSE | S20: =AND(S3<$V$3,SUM($D$13:S13)>0) -> FALSE | T20: =AND(T3<$V$3,SUM($D$13:T13)>0) -> FALSE | V20: =COUNTIF(D20:S20,TRUE) -> 0 | W20: >0 means warning on summary page:
C21: Chargeable Amount | D21: Inputs are capped at £50,000 | G21: =G41 -> 0 | H21: =H46 -> 0 | I21: =I51 -> 0 | J21: =J56 -> 0 | K21: =K61 -> 0 | L21: =L61 -> 0 | M21: =M71 -> 0 | N21: =N76 -> 0 | O21: =O81 -> 0 | P21: =P86 -> 0 | Q21: =Q91 -> 0 | R21: =R96 -> 0 | S21: =S101 -> 0 | T21: =T106 -> 0 | V21: Previous cargeable event logic | W21: =IF((SUM(G21:S21)>0),1,0) -> 0
C23: Carry Forward still available this year | G23: =G30+G35+G40 -> 150000 | H23: =H35+H40+H45 -> 150000 | I23: =I40+I45+I50 -> 150000 | J23: =J45+J50+J55 -> 150000 | K23: =K50+K55+K60+K65 -> 180000 | L23: =L50+L55+L60+L65 -> 180000 | M23: =M55+M60+M65+M70 -> 130000 | N23: =N60+N65+N70+N75 -> 120000 | O23: =O65+O70+O75+O80 -> 120000 | P23: =P85+P80+P75 -> 120000 | Q23: =Q90+Q85+Q80 -> 120000 | R23: =R95+R90+R85 -> 120000 | S23: =S100+S95+S90 -> 120000 | T23: =T105+T100+T95 -> 120000
C25: Carry Forward Calculations - Existing Inputs | K25: =K2 -> 2015/16
D26: =D4 -> 2008/09 | E26: 2009/10 | F26: 2010/11 | G26: 2011/12 | H26: 2012/13 | I26: 2013/14 | J26: 2014/15 | K26: Pre Alignment | L26: Post Alignment | M26: 2016/17 | N26: 2017/18 | O26: 2018/19 | P26: 2019/20 | Q26: 2020/21 | R26: =R4 -> 2021/22 | S26: 2022/23 | T26: 2023/24
B27: 1 | C27: =Summary!$A4 -> 2008/09 | R27: 1 | S27: 1
C28: Unused | D28: =D7 -> 50000 | E28: =D30 -> 50000 | F28: =E30 -> 50000 | G28: =F30 -> 50000
C29: Used up | D29: =MIN(D7,D13) -> 0 | E29: 0 | F29: 0 | G29: =IF(G16=0,0,IF(G28-G16<0,G28,G16)) -> 0
C30: Available | D30: =MAX(0,D28-D29) -> 50000 | E30: =MAX(0,E28-E29) -> 50000 | F30: =MAX(0,F28-F29) -> 50000 | G30: =MAX(0,G28-G29) -> 50000
F31: Excess remaining | G31: =G16-G29 -> 0 | H31: =H16 -> 0
B32: 2 | C32: =Summary!$A5 -> 2009/10 | R32: 2 | S32: 2
C33: =C$28 -> Unused | E33: =E7 -> 50000 | F33: =E35 -> 50000 | G33: =F35 -> 50000 | H33: =G35 -> 50000
C34: =C$29 -> Used up | E34: =MIN(E7,E13) -> 0 | F34: 0 | G34: =IF(G16=0,0,IF(G33-G31<0,G33,G31)) -> 0 | H34: =IF(H16=0,0,IF(H33-H31<0,H33,H31)) -> 0
C35: =C$30 -> Available | E35: =E33-E34 -> 50000 | F35: =F33-F34 -> 50000 | G35: =G33-G34 -> 50000 | H35: =H33-H34 -> 50000
F36: Excess remaining | G36: =G31-G34 -> 0 | H36: =H31-H34 -> 0 | I36: =I16 -> 0
B37: 3 | C37: =Summary!$A6 -> 2010/11 | R37: 3 | S37: 3
C38: =C$28 -> Unused | F38: =F7 -> 50000 | G38: =F40 -> 50000 | H38: =G40 -> 50000 | I38: =H40 -> 50000
C39: =C$29 -> Used up | F39: =MIN(F7,F13) -> 0 | G39: =IF(G16=0,0,IF(G38-G36<0,G38,G36)) -> 0 | H39: =IF(H16=0,0,IF(H38-H36<0,H38,H36)) -> 0 | I39: =IF(I15=0,0,IF(((I15*-1)-I29-I34)>I38,I38,(I15*-1)-I29-I34)) -> 0
C40: =C$30 -> Available | F40: =F38-F39 -> 50000 | G40: =G38-G39 -> 50000 | H40: =H38-H39 -> 50000 | I40: =I38-I39 -> 50000
F41: Excess remaining | G41: =G36-G39 -> 0 | H41: =H36-H39 -> 0 | I41: =I36-I39 -> 0 | J41: =J16 -> 0
B42: 4 | C42: =Summary!$A7 -> 2011/12 | R42: 4 | S42: 4 | V42: Column S added
C43: =C$28 -> Unused | G43: =G7 -> 50000 | H43: =G45 -> 50000 | I43: =H45 -> 50000 | J43: =I45 -> 50000 | V43: Rows 112 to 115 added
C44: =C$29 -> Used up | G44: =MIN(G7,G13) -> 0 | H44: =IF(H16=0,0,IF(H43-H41<0,H43,H41)) -> 0 | I44: =IF(I16=0,0,IF(I43-I41<0,I43,I41)) -> 0 | J44: =IF(J16=0,0,IF(J43-J41<0,J43,J41)) -> 0
C45: =C$30 -> Available | G45: =MAX(0,G43-G44) -> 50000 | H45: =H43-H44 -> 50000 | I45: =I43-I44 -> 50000 | J45: =J43-J44 -> 50000
G46: Excess remaining | H46: =H41-H44 -> 0 | I46: =I41-I44 -> 0 | J46: =J41-J44 -> 0 | K46: =K16 -> 0
B47: 5 | C47: =Summary!$A8 -> 2012/13 | R47: 5 | S47: 5
C48: =C$28 -> Unused | H48: =H7 -> 50000 | I48: =H50 -> 50000 | J48: =I50 -> 50000 | K48: =J50 -> 50000 | L48: =K50 -> 50000
C49: =C$29 -> Used up | H49: =MIN(H7,H13) -> 0 | I49: =IF(I16=0,0,IF(I48-I46<0,I48,I46)) -> 0 | J49: =IF(J16=0,0,IF(J48-J46<0,J48,J46)) -> 0 | K49: =IF(K16=0,0,IF(K48-K46<0,K48,K46)) -> 0 | L49: =IF(L66=0,0,IF(L48-L66<0,L48,L66)) -> 0
C50: =C$30 -> Available | H50: =H48-H49 -> 50000 | I50: =I48-I49 -> 50000 | J50: =J48-J49 -> 50000 | K50: =K48-K49 -> 50000 | L50: =L48-L49 -> 50000
H51: Excess remaining | I51: =I46-I49 -> 0 | J51: =J46-J49 -> 0 | K51: =K16-K49 -> 0 | L51: =L66-L49 -> 0 | M51: =M16 -> 0
B52: 6 | C52: =Summary!$A9 -> 2013/14 | R52: 6 | S52: 6
C53: =C$28 -> Unused | I53: =I7 -> 50000 | J53: =I55 -> 50000 | K53: =J55 -> 50000 | L53: =K55 -> 50000 | M53: =L55 -> 50000
C54: =C$29 -> Used up | I54: =MIN(I7,I13) -> 0 | J54: =IF(J16=0,0,IF(J53-J51<0,J53,J51)) -> 0 | K54: =IF(K16=0,0,IF(K53-K51<0,K53,K51)) -> 0 | L54: =IF(L51=0,0,IF(L53-L51<0,L53,L51)) -> 0 | M54: =IF(M16=0,0,IF(M53-M51<0,M53,M51)) -> 0
C55: =C$30 -> Available | I55: =I53-I54 -> 50000 | J55: =J53-J54 -> 50000 | K55: =K53-K54 -> 50000 | L55: =L53-L54 -> 50000 | M55: =M53-M54 -> 50000
I56: Excess remaining | J56: =J51-J54 -> 0 | K56: =K51-K54 -> 0 | L56: =L51-L54 -> 0 | M56: =M51-M54 -> 0 | N56: =N16 -> 0
B57: 7 | C57: =Summary!$A10 -> 2014/15 | R57: 7 | S57: 7
C58: =C$28 -> Unused | J58: =J7 -> 40000 | K58: =J60 -> 40000 | L58: =K60 -> 40000 | M58: =L60 -> 40000 | N58: =M60 -> 40000
C59: =C$29 -> Used up | J59: =MIN(J7,J13) -> 0 | K59: =IF(K16=0,0,IF(K58-K56<0,K58,K56)) -> 0 | L59: =IF(L16=0,0,IF(L58-L56<0,L58,L56)) -> 0 | M59: =IF(M16=0,0,IF(M58-M56<0,M58,M56)) -> 0 | N59: =IF(N16=0,0,IF(N58-N56<0,N58,N56)) -> 0
C60: =C$30 -> Available | J60: =J58-J59 -> 40000 | K60: =K58-K59 -> 40000 | L60: =L58-L59 -> 40000 | M60: =M58-M59 -> 40000 | N60: =N58-N59 -> 40000
J61: Excess remaining | K61: =K56-K59 -> 0 | L61: =L56-L59 -> 0 | M61: =M56-M59 -> 0 | N61: =N56-N59 -> 0 | O61: =O16 -> 0
B62: 8 | C62: =Summary!$A11 -> 2015/16 (pre alignment) | R62: 8 | S62: 8
C63: =C$28 -> Unused | K63: =K7 -> 80000 | L63: =K65 -> 40000 | M63: =L65 -> 40000 | N63: =M65 -> 40000 | O63: =N65 -> 40000
C64: =C$29 -> Used up | K64: =MIN(K7,K13) -> 0 | L64: =MIN(L63,L13) -> 0 | M64: =IF(M16=0,0,IF(M63-M61<0,M63,M61)) -> 0 | N64: =IF(N16=0,0,IF(N63-N61<0,N63,N61)) -> 0 | O64: =IF(O16=0,0,IF(O63-O61<0,O63,O61)) -> 0
C65: =C$30 -> Available | K65: =MIN(K63-K64,40000) -> 40000 | L65: =L63-L64 -> 40000 | M65: =M63-M64 -> 40000 | N65: =N63-N64 -> 40000 | O65: =O63-O64 -> 40000
K66: Excess remaining | L66: =L16-L64 -> 0 | M66: =M61-M64 -> 0 | N66: =N61-N64 -> 0 | O66: =O61-O64 -> 0 | P66: =P16 -> 0
C67: =Summary!$A12 -> 2015/16 (post alignment)
C68: =C$28 -> Unused | L68: =L7 -> 0 | M68: =L70 -> 0 | N68: =M70 -> 0 | O68: =N70 -> 0
C69: =C$29 -> Used up | L69: =MIN(L7,L13) -> 0 | M69: =IF(M16=0,0,IF(M68-M66<0,M68,M66)) -> 0 | N69: =IF(N16=0,0,IF(N68-N66<0,N68,N66)) -> 0 | O69: =IF(O16=0,0,IF(O68-O66<0,O68,O66)) -> 0
C70: =C$30 -> Available | L70: =L68-L69 -> 0 | M70: =M68-M69 -> 0 | N70: =N68-N69 -> 0 | O70: =O68-O69 -> 0
K71: Excess remaining | L71: =L16 -> 0 | M71: =M66-M69 -> 0 | N71: =N66-N69 -> 0 | O71: =O66-O69 -> 0
B72: 9 | C72: =Summary!$A13 -> 2016/17 | R72: 9 | S72: 9
C73: =C$28 -> Unused | M73: =M7 -> 40000 | N73: =M75 -> 40000 | O73: =N75 -> 40000 | P73: =O75 -> 40000
C74: =C$29 -> Used up | M74: =MIN(M7,M13) -> 0 | N74: =IF(N16=0,0,IF(N73-N71<0,N73,N71)) -> 0 | O74: =IF(O16=0,0,IF(O73-O71<0,O73,O71)) -> 0 | P74: =IF(P16=0,0,IF(P73-P66<0,P73,P66)) -> 0
C75: =C$30 -> Available | M75: =M73-M74 -> 40000 | N75: =N73-N74 -> 40000 | O75: =O73-O74 -> 40000 | P75: =P73-P74 -> 40000
M76: Excess remaining | N76: =N71-N74 -> 0 | O76: =O71-O74 -> 0 | P76: =P66-P74 -> 0 | Q76: =Q16 -> 0
B77: 10 | C77: =Summary!$A14 -> 2017/18
C78: =C$28 -> Unused | N78: =N7 -> 40000 | O78: =N80 -> 40000 | P78: =O80 -> 40000 | Q78: =P80 -> 40000
C79: =C$29 -> Used up | N79: =MIN(N7,N13) -> 0 | O79: =IF(O16=0,0,IF(O78-O76<0,O78,O76)) -> 0 | P79: =IF(P16=0,0,IF(P78-P76<0,P78,P76)) -> 0 | Q79: =IF(Q16=0,0,IF(Q78-Q16<0,Q78,Q16)) -> 0
C80: =C$30 -> Available | N80: =N78-N79 -> 40000 | O80: =O78-O79 -> 40000 | P80: =P78-P79 -> 40000 | Q80: =Q78-Q79 -> 40000
N81: Excess remaining | O81: =O76-O79 -> 0 | P81: =P76-P79 -> 0 | Q81: =Q76-Q79 -> 0 | R81: =R16 -> 0
B82: 11 | C82: =Summary!A15 -> 2018/19
C83: =C$28 -> Unused | O83: =O7 -> 40000 | P83: =O85 -> 40000 | Q83: =P85 -> 40000 | R83: =Q85 -> 40000
C84: =C$29 -> Used up | O84: =MIN(O7,O13) -> 0 | P84: =IF(P16=0,0,IF(P83-P81<0,P83,P81)) -> 0 | Q84: =IF(Q16=0,0,IF(Q83-Q81<0,Q83,Q81)) -> 0 | R84: =IF(R16=0,0,IF(R83-R16<0,R83,R16)) -> 0
C85: =C$30 -> Available | O85: =O83-O84 -> 40000 | P85: =P83-P84 -> 40000 | Q85: =Q83-Q84 -> 40000 | R85: =R83-R84 -> 40000
O86: Excess remaining | P86: =P81-P84 -> 0 | Q86: =Q81-Q84 -> 0 | R86: =R81-R84 -> 0 | S86: =S16 -> 0
C87: =Summary!A16 -> 2019/20
C88: =C$28 -> Unused | P88: =P7 -> 40000 | Q88: =P90 -> 40000 | R88: =Q90 -> 40000 | S88: =R90 -> 40000
C89: =C$29 -> Used up | P89: =MIN(P7,P13) -> 0 | Q89: =IF(Q16=0,0,IF(Q88-Q86<0,Q88,Q86)) -> 0 | R89: =IF(R16=0,0,IF(R88-R86<0,R88,R86)) -> 0 | S89: =IF(S16=0,0,IF(S88-S16<0,S88,S16)) -> 0
C90: =C$30 -> Available | P90: =P88-P89 -> 40000 | Q90: =Q88-Q89 -> 40000 | R90: =R88-R89 -> 40000 | S90: =S88-S89 -> 40000
P91: Excess remaining | Q91: =Q86-Q89 -> 0 | R91: =R86-R89 -> 0 | S91: =S86-S89 -> 0 | T91: =T16 -> 0
C92: =Summary!A17 -> 2020/21
C93: =C$28 -> Unused | Q93: =Q7 -> 40000 | R93: =Q95 -> 40000 | S93: =R95 -> 40000 | T93: =S95 -> 40000
C94: =C$29 -> Used up | Q94: =MIN(Q7,Q13) -> 0 | R94: =IF(R16=0,0,IF(R93-R91<0,R93,R91)) -> 0 | S94: =IF(S16=0,0,IF(S93-S91<0,S93,S91)) -> 0 | T94: =IF(T16=0,0,IF(T93-T91<0,T93,T91)) -> 0
C95: =C$30 -> Available | Q95: =Q93-Q94 -> 40000 | R95: =R93-R94 -> 40000 | S95: =S93-S94 -> 40000 | T95: =T93-T94 -> 40000
Q96: Excess remaining | R96: =R91-R94 -> 0 | S96: =S91-S94 -> 0 | T96: =T91-T94 -> 0
C97: =Summary!A18 -> 2021/22
C98: =C$28 -> Unused | R98: =R7 -> 40000 | S98: =R100 -> 40000 | T98: =S100 -> 40000
C99: =C$29 -> Used up | R99: =MIN(R7,R13) -> 0 | S99: =IF(S16=0,0,IF(S98-S96<0,S98,S96)) -> 0 | T99: =IF(T16=0,0,IF(T98-T96<0,T98,T96)) -> 0
C100: =C$30 -> Available | R100: =R98-R99 -> 40000 | S100: =S98-S99 -> 40000 | T100: =T98-T99 -> 40000
R101: Excess remaining | S101: =S96-S99 -> 0 | T101: =T96-T99 -> 0
C102: =Summary!A19 -> 2022/23
C103: =C$28 -> Unused | S103: =S7 -> 40000 | T103: =S105 -> 40000
C104: =C$29 -> Used up | S104: =MIN(S7,S13) -> 0 | T104: =IF(T16=0,0,IF(T103-T101<0,T103,T101)) -> 0
C105: =C$30 -> Available | S105: =S103-S104 -> 40000 | T105: =T103-T104 -> 40000
S106: Excess remaining | T106: =T101-T104 -> 0
C107: =Summary!A20 -> 2023/24
C108: =C$28 -> Unused | T108: =T7 -> 60000
C109: =C$29 -> Used up | T109: =MIN(T7,T13) -> 0
C110: =C$30 -> Available | T110: =T108-T109 -> 60000
F128: 2010 Straddling PIP calculation
F129: Allowance | G129: Actual | H129: Excess
D130: Pre 14/10/10 | F130: =255000-(MIN(50000,G131)) -> 255000 | G130: =Summary!M12 -> 0 | H130: =MAX(0,G130-F130) -> 0
D131: Post 14/10/10 | F131: =G5 -> 50000 | G131: =Summary!M13 -> 0 | H131: =MAX(0,G131-F131) -> 0
H132: =SUM(H130:H131) -> 0
E133: 2015 Pre and Post Budget PIPs
F134: Allowance | G134: Actual | H134: Excess
E135: Pre 9/7/15 | F135: =K7 -> 80000 | G135: =Summary!M18 -> 0 | H135: =MAX(0,G135-F135) -> 0
E136: Post 9/7/15 | F136: =IF(H135>0,0,MIN(40000,80000-G135)) -> 40000 | G136: =Summary!M19 -> 0 | H136: =MAX(0,G136-F136) -> 0
H137: =SUM(H135:H136) -> 0

Sheet Taper 16-17
D1: Tapered Annual Allowance Calculator 2016/17 Tax Year
D3: Instructions: Input relevant figures in white boxes. Tapered Allowance will be calculated where relevant. For income definitions see Pensions Tax Manual - PTM057100 | I3: Adjusted Income | M3: Threshold Income
D5: Total Income | E5: 0 | I5: =E5 -> 0 | M5: =E5 -> 0
D6: (please remember to deduct net pay contributions from this figure) | I6: - | M6: -
D8: Allowable Reliefs | E8: 0 | I8: =E8 -> 0 | M8: =E8 -> 0
I9: +
D10: Net Pay Contributions | E10: 0 | I10: =E10 -> 0 | S10: Total Inputs | T10: =E5+E8+E10+E13+E16+E18+E20+E23+E26 -> 0
D11: (including any s226 contributions) | M11: - | S11: AA Input | T11: =(E10-E20)+E13+E16+E18 -> 0
D13: Relief at Source contributions (Gross) | E13: 0 | M13: =E13 -> 0
I14: +
D15: Value of employer pension contributions
D16: Employer Penson Contributions to Money Purchase | E16: 0 | I16: =E16 -> 0
I17: +
D18: Total DB Pension Input Amount for year | E18: 0 | I18: =E18 -> 0
I19: -
D20: Total gross employee contribution to DB scheme(s) included above | E20: 0 | I20: =E20 -> 0
M22: +
D23: Employment Income given up post 09/07/15 | E23: 0 | M23: =E23 -> 0
D24: e.g. Salary Sacrifice - Remember to add the new employer contribution above | I24: - | M24: -
D26: Taxable Lump Sum Death Benefits (Gross Value) | E26: 0 | I26: =E26 -> 0 | M26: =E26 -> 0
D28: Totals | I28: =I5-I8+I10+(I16+I18-I20)-I26 -> 0 | M28: =M5-M8-M13+M23-M26 -> 0
D30: Limit breached? | I30: =IF(I28>150002,"Yes","No") -> No | M30: =IF(M28>110000,"Yes","No") -> No
D32: Is the Taper Triggered? | E32: =IF((I30="YES")*AND(M30="YES"),"Yes","No") -> No
D33: Annual Allowance for 2016/17 | E33: =ROUNDUP(MAX(10000,0,IF(E32="Yes",40000-((I28-150000)/2),40000)),0) -> 40000
D37: Warning, once you have calculated the remaining AA for the member be aware that any further contributions may change the tapered calculation. For instance if the employer is planning to contribute the remaining AA for a member, the contribution they can make will be two thirds of the remaining AA that has been calculated.

Sheet Taper 17-18
D1: Tapered Annual Allowance Calculator 2017/18 Tax Year
D3: Instructions: Input relevant figures in white boxes. Tapered Allowance will be calculated where relevant. For income definitions see Pensions Tax Manual - PTM057100 | I3: Adjusted Income | M3: Threshold Income
D5: Total Income | E5: 0 | I5: =E5 -> 0 | M5: =E5 -> 0
D6: (please remember to deduct net pay contributions from this figure) | I6: - | M6: -
D8: Allowable Reliefs | E8: 0 | I8: =E8 -> 0 | M8: =E8 -> 0
I9: + | S9: Total Inputs | T9: =E5+E8+E10+E13+E16+E18+E20+E23+E26 -> 0
D10: Net Pay Contributions | E10: 0 | I10: =E10 -> 0 | S10: AA Input | T10: =(E10-E20)+E13+E16+E18 -> 0
D11: (including any s226 contributions) | M11: -
D13: Relief at Source contributions (Gross) | E13: 0 | M13: =E13 -> 0
I14: +
D15: Value of employer pension contributions
D16: Employer Penson Contributions to Money Purchase | E16: 0 | I16: =E16 -> 0
I17: +
D18: Total DB Pension Input Amount for year | E18: 0 | I18: =E18 -> 0
I19: -
D20: Total gross employee contribution to DB scheme(s) included above | E20: 0 | I20: =E20 -> 0
M22: +
D23: Employment Income given up post 09/07/15 | E23: 0 | M23: =E23 -> 0
D24: e.g. Salary Sacrifice - Remember to add the new employer contribution above | I24: - | M24: -
D26: Taxable Lump Sum Death Benefits (Gross Value) | E26: 0 | I26: =E26 -> 0 | M26: =E26 -> 0
D28: Totals | I28: =I5-I8+I10+(I16+I18-I20)-I26 -> 0 | M28: =M5-M8-M13+M23-M26 -> 0
D30: Limit breached? | I30: =IF(I28>150002,"Yes","No") -> No | M30: =IF(M28>110000,"Yes","No") -> No
D32: Is the Taper Triggered? | E32: =IF((I30="YES")*AND(M30="YES"),"Yes","No") -> No
D33: Annual Allowance for 2017/18 | E33: =ROUNDUP(MAX(10000,0,IF(E32="Yes",40000-((I28-150000)/2),40000)),0) -> 40000
D37: Warning, once you have calculated the remaining AA for the member be aware that any further contributions may change the tapered calculation. For instance if the employer is planning to contribute the remaining AA for a member, the contribution they can make will be roughly two thirds of the remaining AA that has been calculated.

Sheet Taper 18-19
D1: Tapered Annual Allowance Calculator 2018/19 Tax Year
D3: Instructions: Input relevant figures in white boxes. Tapered Allowance will be calculated where relevant. For income definitions see Pensions Tax Manual - PTM057100 | I3: Adjusted Income | M3: Threshold Income
D5: Total Income | E5: 0 | I5: =E5 -> 0 | M5: =E5 -> 0
D6: (please remember to deduct net pay contributions from this figure) | I6: - | M6: -
D8: Allowable Reliefs | E8: 0 | I8: =E8 -> 0 | M8: =E8 -> 0
I9: + | S9: 0 | T9: =E5+E8+E10+E13+E16+E18+E20+E23+E26 -> 0
D10: Net Pay Contributions | E10: 0 | I10: =E10 -> 0 | S10: AA Input | T10: =(E10-E20)+E13+E16+E18 -> 0
D11: (including any s226 contributions) | M11: -
D13: Relief at Source contributions (Gross) | E13: 0 | M13: =E13 -> 0
I14: +
D15: Value of employer pension contributions
D16: Employer Penson Contributions to Money Purchase | E16: 0 | I16: =E16 -> 0
I17: +
D18: Total DB Pension Input Amount for year | E18: 0 | I18: =E18 -> 0
I19: -
D20: Total gross employee contribution to DB scheme(s) included above | E20: 0 | I20: =E20 -> 0
M22: +
D23: Employment Income given up post 09/07/15 | E23: 0 | M23: =E23 -> 0
D24: e.g. Salary Sacrifice - Remember to add the new employer contribution above | I24: - | M24: -
D26: Taxable Lump Sum Death Benefits (Gross Value) | E26: 0 | I26: =E26 -> 0 | M26: =E26 -> 0
D28: Totals | I28: =I5-I8+I10+(I16+I18-I20)-I26 -> 0 | M28: =M5-M8-M13+M23-M26 -> 0
D30: Limit breached? | I30: =IF(I28>150002,"Yes","No") -> No | M30: =IF(M28>110000,"Yes","No") -> No
D32: Is the Taper Triggered? | E32: =IF((I30="YES")*AND(M30="YES"),"Yes","No") -> No
D33: Annual Allowance for 2018/19 | E33: =ROUNDUP(MAX(10000,0,IF(E32="Yes",40000-((I28-150000)/2),40000)),0) -> 40000
D37: Warning, once you have calculated the remaining AA for the member be aware that any further contributions may change the tapered calculation. For instance if the employer is planning to contribute the remaining AA for a member, the contribution they can make will be roughly two thirds of the remaining AA that has been calculated.

Sheet Taper 19-20
D1: Tapered Annual Allowance Calculator 2019/20 Tax Year
D3: Instructions: Input relevant figures in white boxes. Tapered Allowance will be calculated where relevant. For income definitions see Pensions Tax Manual - PTM057100 | I3: Adjusted Income | M3: Threshold Income
D5: Total Income | E5: 0 | I5: =E5 -> 0 | M5: =E5 -> 0
D6: (please remember to deduct net pay contributions from this figure) | I6: - | M6: -
D8: Allowable Reliefs | E8: 0 | I8: =E8 -> 0 | M8: =E8 -> 0
I9: + | S9: Total Inputs | T9: =E5+E8+E10+E13+E16+E18+E20+E23+E26 -> 0
D10: Net Pay Contributions | E10: 0 | I10: =E10 -> 0 | S10: AA Input | T10: =(E10-E20)+E13+E16+E18 -> 0
D11: (including any s226 contributions) | M11: - | W11: 0
D13: Relief at Source contributions (Gross) | E13: 0 | M13: =E13 -> 0
I14: +
D15: Value of employer pension contributions
D16: Employer Penson Contributions to Money Purchase | E16: 0 | I16: =E16 -> 0
I17: +
D18: Total DB Pension Input Amount for year | E18: 0 | I18: =E18 -> 0
I19: -
D20: Total gross employee contribution to DB scheme(s) included above | E20: 0 | I20: =E20 -> 0
M22: +
D23: Employment Income given up post 09/07/15 | E23: 0 | M23: =E23 -> 0
D24: e.g. Salary Sacrifice - Remember to add the new employer contribution above | I24: - | M24: -
D26: Taxable Lump Sum Death Benefits (Gross Value) | E26: 0 | I26: =E26 -> 0 | M26: =E26 -> 0
D28: Totals | I28: =I5-I8+I10+(I16+I18-I20)-I26 -> 0 | M28: =M5-M8-M13+M23-M26 -> 0
R29: 0
D30: Limit breached? | I30: =IF(I28>150002,"Yes","No") -> No | M30: =IF(M28>110000,"Yes","No") -> No
D32: Is the Taper Triggered? | E32: =IF((I30="YES")*AND(M30="YES"),"Yes","No") -> No
D33: Annual Allowance for 2019/20 | E33: =ROUNDUP(MAX(10000,0,IF(E32="Yes",40000-((I28-150000)/2),40000)),0) -> 40000
D37: Warning, once you have calculated the remaining AA for the member be aware that any further contributions may change the tapered calculation. For instance if the employer is planning to contribute the remaining AA for a member, the contribution they can make will be roughly two thirds of the remaining AA that has been calculated.

Sheet Taper 20-21
D1: Tapered Annual Allowance Calculator 2020/21 Tax Year
D3: Instructions: Input relevant figures in white boxes. Tapered Allowance will be calculated where relevant. For income definitions see Pensions Tax Manual - PTM057100 | I3: Adjusted Income | M3: Threshold Income
D5: Total Income | E5: 0 | I5: =E5 -> 0 | M5: =E5 -> 0
D6: (please remember to deduct net pay contributions from this figure) | I6: - | M6: -
D8: Allowable Reliefs | E8: 0 | I8: =E8 -> 0 | M8: =E8 -> 0
I9: + | S9: Total Inputs | T9: =E5+E8+E10+E13+E16+E18+E20+E23+E26 -> 0
D10: Net Pay Contributions | E10: 0 | I10: =E10 -> 0 | S10: AA Input | T10: =(E10-E20)+E13+E16+E18 -> 0
D11: (including any s226 contributions) | M11: -
D13: Relief at Source contributions (Gross) | E13: 0 | M13: =E13 -> 0
I14: +
D15: Value of employer pension contributions
D16: Employer Penson Contributions to Money Purchase | E16: 0 | I16: =E16 -> 0 | X16: 2646.63
I17: + | X17: 5917.02
D18: Total DB Pension Input Amount for year | E18: 0 | I18: =E18 -> 0 | X18: 9748
I19: - | T19: =T10-E33 -> -40000 | X19: =SUM(X16:X18) -> 18311.65
D20: Total gross employee contribution to DB scheme(s) included above | E20: 0 | I20: =E20 -> 0 | T20: =T19*0.46 -> -18400
M22: +
D23: Employment Income given up post 09/07/15 | E23: 0 | M23: =E23 -> 0
D24: e.g. Salary Sacrifice - Remember to add the new employer contribution above | I24: - | M24: -
D26: Taxable Lump Sum Death Benefits (Gross Value) | E26: 0 | I26: =E26 -> 0 | M26: =E26 -> 0
D28: Totals | I28: =I5-I8+I10+(I16+I18-I20)-I26 -> 0 | M28: =M5-M8-M13+M23-M26 -> 0
R29: 0
D30: Limit breached? | I30: =IF(I28>240002,"Yes","No") -> No | M30: =IF(M28>200000,"Yes","No") -> No
R31: Cells in RED have formula changes
D32: Is the Taper Triggered? | E32: =IF((I30="YES")*AND(M30="YES"),"Yes","No") -> No
D33: Annual Allowance for 2020/21 | E33: =ROUNDUP(MAX(4000,0,IF(E32="Yes",40000-((I28-240000)/2),40000)),0) -> 40000
D37: Warning, once you have calculated the remaining AA for the member be aware that any further contributions may change the tapered calculation. For instance if the employer is planning to contribute the remaining AA for a member, the contribution they can make will be roughly two thirds of the remaining AA that has been calculated.

Sheet Taper 21-22
D1: Tapered Annual Allowance Calculator 2021/22 Tax Year
D3: Instructions: Input relevant figures in white boxes. Tapered Allowance will be calculated where relevant. For income definitions see Pensions Tax Manual - PTM057100 | I3: Adjusted Income | M3: Threshold Income
D5: Total Income | E5: 0 | I5: =E5 -> 0 | M5: =E5 -> 0
D6: (please remember to deduct net pay contributions from this figure) | I6: - | M6: -
D8: Allowable Reliefs | E8: 0 | I8: =E8 -> 0 | M8: =E8 -> 0
I9: + | S9: Total Inputs | T9: =E5+E8+E10+E13+E16+E18+E20+E23+E26 -> 0
D10: Net Pay Contributions | E10: 0 | I10: =E10 -> 0 | S10: AA Input | T10: =(E10-E20)+E13+E16+E18 -> 0
D11: (including any s226 contributions) | M11: -
D13: Relief at Source contributions (Gross) | E13: 0 | M13: =E13 -> 0
I14: +
D15: Value of employer pension contributions
D16: Employer Penson Contributions to Money Purchase | E16: 0 | I16: =E16 -> 0
I17: +
D18: Total DB Pension Input Amount for year | E18: 0 | I18: =E18 -> 0
I19: - | T19: =E16-E33 -> -40000
D20: Total gross employee contribution to DB scheme(s) included above | E20: 0 | I20: =E20 -> 0
M22: +
D23: Employment Income given up post 09/07/15 | E23: 0 | M23: =E23 -> 0
D24: e.g. Salary Sacrifice - Remember to add the new employer contribution above | I24: - | M24: -
D26: Taxable Lump Sum Death Benefits (Gross Value) | E26: 0 | I26: =E26 -> 0 | M26: =E26 -> 0
D28: Totals | I28: =I5-I8+I10+(I16+I18-I20)-I26 -> 0 | M28: =M5-M8-M13+M23-M26 -> 0
R29: 0
D30: Limit breached? | I30: =IF(I28>240002,"Yes","No") -> No | M30: =IF(M28>200000,"Yes","No") -> No
D32: Is the Taper Triggered? | E32: =IF((I30="YES")*AND(M30="YES"),"Yes","No") -> No
D33: Annual Allowance for 2021/22 | E33: =ROUNDUP(MAX(4000,0,IF(E32="Yes",40000-((I28-240000)/2),40000)),0) -> 40000
D37: Warning, once you have calculated the remaining AA for the member be aware that any further contributions may change the tapered calculation. For instance if the employer is planning to contribute the remaining AA for a member, the contribution they can make will be roughly two thirds of the remaining AA that has been calculated.

Sheet Taper 22-23
D1: Tapered Annual Allowance Calculator 2022/23 Tax Year | W1: This is a new tab
D3: Instructions: Input relevant figures in white boxes. Tapered Allowance will be calculated where relevant. For income definitions see Pensions Tax Manual - PTM057100 | I3: Adjusted Income | M3: Threshold Income
D5: Total Income | E5: 0 | I5: =E5 -> 0 | M5: =E5 -> 0
D6: (please remember to deduct net pay contributions from this figure) | I6: - | M6: -
D8: Allowable Reliefs | E8: 0 | I8: =E8 -> 0 | M8: =E8 -> 0
I9: + | S9: Total Inputs | T9: =E5+E8+E10+E13+E16+E18+E20+E23+E26 -> 0
D10: Net Pay Contributions | E10: 0 | I10: =E10 -> 0 | S10: AA Input | T10: =(E10-E20)+E13+E16+E18 -> 0
D11: (including any s226 contributions) | M11: -
D13: Relief at Source contributions (Gross) | E13: 0 | M13: =E13 -> 0
I14: +
D15: Value of employer pension contributions
D16: Employer Penson Contributions to Money Purchase | E16: 0 | I16: =E16 -> 0
I17: +
D18: Total DB Pension Input Amount for year | E18: 0 | I18: =E18 -> 0
I19: - | T19: =E16-E33 -> -40000
D20: Total gross employee contribution to DB scheme(s) included above | E20: 0 | I20: =E20 -> 0
M22: +
D23: Employment Income given up post 09/07/15 | E23: 0 | M23: =E23 -> 0
D24: e.g. Salary Sacrifice - Remember to add the new employer contribution above | I24: - | M24: -
D26: Taxable Lump Sum Death Benefits (Gross Value) | E26: 0 | I26: =E26 -> 0 | M26: =E26 -> 0
D28: Totals | I28: =I5-I8+I10+(I16+I18-I20)-I26 -> 0 | M28: =M5-M8-M13+M23-M26 -> 0
R29: 0
D30: Limit breached? | I30: =IF(I28>240002,"Yes","No") -> No | M30: =IF(M28>200000,"Yes","No") -> No
D32: Is the Taper Triggered? | E32: =IF((I30="YES")*AND(M30="YES"),"Yes","No") -> No
D33: Annual Allowance for 2022/23 | E33: =ROUNDUP(MAX(4000,0,IF(E32="Yes",40000-((I28-240000)/2),40000)),0) -> 40000
D37: Warning, once you have calculated the remaining AA for the member be aware that any further contributions may change the tapered calculation. For instance if the employer is planning to contribute the remaining AA for a member, the contribution they can make will be roughly two thirds of the remaining AA that has been calculated.

Sheet Taper 23-24
D1: Tapered Annual Allowance Calculator 2023/24 Tax Year | W1: This is a new tab
D3: Instructions: Input relevant figures in white boxes. Tapered Allowance will be calculated where relevant. For income definitions see Pensions Tax Manual - PTM057100 | I3: Adjusted Income | M3: Threshold Income
D5: Total Income | E5: 0 | I5: =E5 -> 0 | M5: =E5 -> 0
D6: (please remember to deduct net pay contributions from this figure) | I6: - | M6: -
D8: Allowable Reliefs | E8: 0 | I8: =E8 -> 0 | M8: =E8 -> 0
I9: + | S9: Total Inputs | T9: =E5+E8+E10+E13+E16+E18+E20+E23+E26 -> 0
D10: Net Pay Contributions | E10: 0 | I10: =E10 -> 0 | S10: AA Input | T10: =(E10-E20)+E13+E16+E18 -> 0
D11: (including any s226 contributions) | M11: -
D13: Relief at Source contributions (Gross) | E13: 0 | M13: =E13 -> 0
I14: +
D15: Value of employer pension contributions
D16: Employer Penson Contributions to Money Purchase | E16: 0 | I16: =E16 -> 0
I17: +
D18: Total DB Pension Input Amount for year | E18: 0 | I18: =E18 -> 0
I19: - | T19: =E16-E33 -> -60000
D20: Total gross employee contribution to DB scheme(s) included above | E20: 0 | I20: =E20 -> 0
M22: +
D23: Employment Income given up post 09/07/15 | E23: 0 | M23: =E23 -> 0
D24: e.g. Salary Sacrifice - Remember to add the new employer contribution above | I24: - | M24: -
D26: Taxable Lump Sum Death Benefits (Gross Value) | E26: 0 | I26: =E26 -> 0 | M26: =E26 -> 0
D28: Totals | I28: =I5-I8+I10+(I16+I18-I20)-I26 -> 0 | M28: =M5-M8-M13+M23-M26 -> 0
R29: 0
D30: Limit breached? | I30: =IF(I28>260002,"Yes","No") -> No | M30: =IF(M28>200000,"Yes","No") -> No | XFD30: =ROUNDUP(MAX(4000,0,IF(E32="Yes",40000-((I28-240000)/2),40000)),0) -> 40000
D32: Is the Taper Triggered? | E32: =IF((I30="YES")*AND(M30="YES"),"Yes","No") -> No
D33: Annual Allowance for 2023/24 | E33: =ROUNDUP(MAX(10000,0,IF(E32="Yes",60000-((I28-260000)/2),60000)),0) -> 60000
D37: Warning, once you have calculated the remaining AA for the member be aware that any further contributions may change the tapered calculation. For instance if the employer is planning to contribute the remaining AA for a member, the contribution they can make will be roughly two thirds of the remaining AA that has been calculated.
